bitfinex/quotes_BTCUSD_20250211
["timestamp","ask_amount","ask_price","bid_price","bid_amount"]
[1739245854999,0.0496,97665.0,97663.0,0.1636956]
[1739245855965,0.0496,97665.0,97664.0,0.153587]
[1739245857711,0.0496,97665.0,97664.0,0.159587]
[1739245858299,0.0496,97665.0,97664.0,0.162587]
[1739245858570,0.0777275,97665.0,97664.0,0.162587]
[1739245859322,0.0496,97665.0,97664.0,0.162587]
[1739245861096,0.0496,97665.0,97664.0,0.009]
[1739245861561,0.05767602,97665.0,97664.0,0.162587]
[1739245861782,0.0496,97665.0,97664.0,0.162587]
[1739245861973,0.06238067,97665.0,97664.0,0.162587]
[1739245863999,0.06238067,97665.0,97664.0,0.009]
[1739245864235,0.231682,97668.0,97664.0,0.009]
[1739245864236,0.0781,97668.0,97664.0,0.009]
[1739245864893,0.00807603,97667.0,97664.0,0.009]
[1739245865093,0.00807603,97667.0,97664.0,0.003]
[1739245865217,0.00807603,97667.0,97663.0,0.1536946]
[1739245865423,0.00807603,97667.0,97664.0,0.004]
[1739245865628,0.00807603,97667.0,97664.0,0.006]
[1739245865848,0.00807603,97667.0,97663.0,0.1536946]
[1739245866046,0.00807603,97667.0,97664.0,0.002]
[1739245866256,0.00807603,97667.0,97664.0,0.007]
[1739245867351,0.00807603,97667.0,97664.0,0.002]
[1739245868698,0.00807603,97667.0,97664.0,0.007]
[1739245869907,0.0574996,97667.0,97664.0,0.007]
[1739245870888,0.00807603,97667.0,97664.0,0.007]
[1739245872121,0.00818273,97667.0,97664.0,0.007]
[1739245874712,0.16176573,97667.0,97664.0,0.007]
[1739245875478,0.00818273,97667.0,97664.0,0.007]
[1739245878816,0.16176573,97667.0,97664.0,0.007]
[1739245879007,0.06495104,97666.0,97664.0,0.007]
[1739245879209,0.153586,97665.0,97664.0,0.007]
[1739245879408,0.16166385,97665.0,97664.0,0.007]
[1739245879742,0.16166385,97665.0,97664.0,0.002]
[1739245880513,0.153587,97664.0,97663.0,0.0001066]
[1739245880754,0.24039363,97664.0,97663.0,0.0001066]
[1739245881156,0.24847148,97664.0,97663.0,0.0001066]
[1739245882021,0.24847148,97664.0,97663.0,0.0011066]
[1739245883165,0.16166485,97664.0,97663.0,0.0011066]
[1739245883961,0.16166485,97664.0,97663.0,0.0021066]
[1739245887623,0.28556485,97664.0,97663.0,0.0021066]
[1739245891696,0.28556485,97664.0,97663.0,0.0021066]
[1739245895123,0.28567155,97664.0,97663.0,0.0021066]
[1739245919918,0.16177155,97664.0,97663.0,0.0021066]
[1739245922407,0.22714585,97664.0,97663.0,0.0021066]
[1739245923036,0.16177155,97664.0,97663.0,0.0021066]
[1739245924718,0.00818455,97664.0,97663.0,0.25819925]
[1739245925128,0.0001067,97664.0,97663.0,0.38139925]
[1739245925985,0.0001067,97664.0,97663.0,0.39055109]
[1739245926164,0.0001067,97664.0,97663.0,0.38955109]
[1739245926386,0.0001067,97664.0,97663.0,0.39055109]
[1739245926544,0.0001067,97664.0,97663.0,0.39155109]
[1739245926744,0.0001067,97664.0,97663.0,0.39055109]
[1739245927169,0.0001067,97664.0,97663.0,0.39455109]
[1739245927349,0.0001067,97664.0,97663.0,0.39355109]
[1739245927579,0.0001067,97664.0,97663.0,0.40255109]
[1739245938293,0.0001067,97664.0,97663.0,0.55255109]
[1739245938710,0.0001067,97664.0,97663.0,0.57555109]
[1739245941072,0.0001067,97664.0,97663.0,1.10965109]
[1739245942909,0.0001067,97664.0,97663.0,0.96345109]
[1739245944946,0.0001067,97664.0,97663.0,0.80329925]
[1739245946291,0.0001067,97664.0,97663.0,0.5472066]
[1739245946503,0.0001067,97664.0,97663.0,0.7007956]
[1739245946900,0.0001067,97664.0,97663.0,0.1576956]
[1739245948087,0.0001067,97664.0,97663.0,0.0041066]
[1739245948300,0.0001067,97664.0,97663.0,0.0061066]
[1739245948512,0.00819956,97664.0,97663.0,0.0021066]
[1739245948712,0.005808,97664.0,97663.0,0.0021066]
[1739245948921,0.005808,97664.0,97663.0,0.0031066]
[1739245949331,0.005808,97664.0,97663.0,0.0011066]
[1739245949532,0.005808,97664.0,97663.0,0.0001066]
[1739245949731,0.005808,97664.0,97663.0,0.0011066]
[1739245949936,0.0001067,97664.0,97663.0,0.1556956]
[1739245954982,0.0001067,97664.0,97663.0,0.0021066]
[1739245955613,0.09008342,97664.0,97663.0,0.0021066]
[1739245955844,0.0820067,97664.0,97663.0,0.0021066]
[1739245955995,0.09008342,97664.0,97663.0,0.1556956]
[1739245958850,0.09008342,97664.0,97663.0,0.0021066]
[1739245959079,0.09008342,97664.0,97663.0,0.1556956]
[1739245967125,0.00818342,97664.0,97663.0,0.1556956]
[1739245967651,0.0001067,97664.0,97663.0,0.1556956]
[1739245967804,0.00818397,97664.0,97663.0,0.1556956]
[1739245968024,0.0001067,97664.0,97663.0,0.1556956]
[1739245968524,0.00818397,97664.0,97663.0,0.1556956]
[1739245968750,0.0001067,97664.0,97663.0,0.1556956]
[1739245968949,0.00818397,97664.0,97663.0,0.1556956]
[1739245969150,0.0001067,97664.0,97663.0,0.1556956]
[1739245969357,0.00818397,97664.0,97663.0,0.1556956]
[1739245969544,0.0001067,97664.0,97663.0,0.1556956]
[1739245970548,0.00818397,97664.0,97663.0,0.1556956]
[1739245970761,0.0001067,97664.0,97663.0,0.1556956]
[1739245970962,0.00818397,97664.0,97663.0,0.1556956]
[1739245971163,0.0001067,97664.0,97663.0,0.1556956]
[1739245971692,0.00818397,97664.0,97663.0,0.1556956]
[1739245971916,0.0001067,97664.0,97663.0,0.1556956]
[1739245972140,0.00818397,97664.0,97663.0,0.1556956]
[1739245972338,0.0001067,97664.0,97663.0,0.1556956]
[1739245972552,0.00818397,97664.0,97663.0,0.1556956]
[1739245972752,0.0001067,97664.0,97663.0,0.1556956]
[1739245973075,0.00818397,97664.0,97663.0,0.17489097]
[1739245973286,0.0001067,97664.0,97663.0,0.17489097]
[1739245973465,0.00818397,97664.0,97663.0,0.17489097]
[1739245975372,0.02207371,97664.0,97663.0,0.02130197]
[1739245976681,0.10097371,97664.0,97663.0,0.02130197]
[1739245976892,0.25456071,97664.0,97663.0,0.02130197]
[1739245978825,0.24067097,97664.0,97663.0,0.02130197]
[1739245980782,0.24067097,97664.0,97663.0,0.0021066]
[1739245981491,0.08708397,97664.0,97663.0,0.0021066]
[1739245982127,0.24067097,97664.0,97663.0,0.0021066]
[1739245982716,0.08708397,97664.0,97663.0,0.0021066]
[1739245982915,0.00818397,97664.0,97663.0,0.0021066]
[1739245983257,0.00818397,97664.0,97663.0,0.1556956]
[1739245983457,0.0001067,97664.0,97663.0,0.0021066]
[1739245984408,0.0001067,97664.0,97663.0,0.02129475]
[1739245985152,0.00817411,97664.0,97663.0,0.02129475]
[1739245985352,0.0001067,97664.0,97663.0,0.02129475]
[1739245985567,0.00817411,97664.0,97663.0,0.02129475]
[1739245985882,0.0001067,97664.0,97663.0,0.0021066]
[1739245985999,0.00817411,97664.0,97663.0,0.0021066]
[1739245986226,0.02437066,97664.0,97663.0,0.0021066]
[1739245986587,0.13727411,97664.0,97663.0,0.0021066]
[1739245990548,0.05567411,97664.0,97663.0,0.0021066]
[1739245990766,0.00817411,97664.0,97663.0,0.0021066]
[1739245998043,0.00817411,97664.0,97663.0,0.02129566]
[1739245999402,0.05300826,97664.0,97663.0,0.02129566]
[1739246000265,0.00817411,97664.0,97663.0,0.02129566]
[1739246022982,0.0001067,97664.0,97663.0,0.02129566]
[1739246023207,0.00816213,97664.0,97663.0,0.02129566]
[1739246025315,0.0001067,97664.0,97663.0,0.02129566]
[1739246025516,0.00816213,97664.0,97663.0,0.02129566]
[1739246029694,0.02435768,97664.0,97663.0,0.02129566]
[1739246032860,0.00816213,97664.0,97663.0,0.02129566]
[1739246034459,0.29104913,97664.0,97663.0,0.02129566]
[1739246035611,0.29104913,97664.0,97663.0,0.0021066]
[1739246044074,0.16174913,97664.0,97663.0,0.0021066]
[1739246045985,0.00816213,97664.0,97663.0,0.0021066]
[1739246046424,0.16174913,97664.0,97663.0,0.0021066]
[1739246047209,0.00816213,97664.0,97663.0,0.0021066]
[1739246050035,0.00816213,97664.0,97663.0,0.1556956]
[1739246050246,0.0001067,97664.0,97663.0,0.1556956]
[1739246055771,0.0001067,97664.0,97663.0,0.0021066]
[1739246086950,0.00816202,97664.0,97663.0,0.0021066]
[1739246087161,0.02435726,97664.0,97663.0,0.0021066]
[1739246087380,0.01630194,97664.0,97663.0,0.0021066]
[1739246088610,0.25268894,97664.0,97663.0,0.0021066]
[1739246088797,0.2364937,97664.0,97663.0,0.0021066]
[1739246089111,0.24454907,97664.0,97663.0,0.0021066]
[1739246098684,0.00816207,97664.0,97663.0,0.0021066]
[1739246099023,0.0001067,97664.0,97663.0,0.0021066]
[1739246102379,0.0805067,97664.0,97663.0,0.0021066]
[1739246102604,0.24948331,97664.0,97663.0,0.0021066]
[1739246102920,0.25753287,97664.0,97663.0,0.0021066]
[1739246105389,0.26784224,97664.0,97663.0,0.0021066]
[1739246106966,0.25245263,97664.0,97663.0,0.0021066]
[1739246108183,0.24214326,97664.0,97663.0,0.0021066]
[1739246109977,0.25234368,97664.0,97663.0,0.0021066]
[1739246112874,0.00815626,97664.0,97663.0,0.0021066]
[1739246113514,0.0001067,97664.0,97663.0,0.1556956]
[1739246115112,0.0001067,97664.0,97663.0,0.0021066]
[1739246115449,0.0001067,97664.0,97663.0,0.1556956]
[1739246126465,0.0081653,97664.0,97663.0,0.1556956]
[1739246126670,0.0001067,97664.0,97663.0,0.25819925]
[1739246170911,0.0001067,97664.0,97663.0,0.34059925]
[1739246173046,0.0001067,97664.0,97663.0,0.33959925]
[1739246173244,0.0001067,97664.0,97663.0,0.34559925]
[1739246174049,0.0001067,97664.0,97663.0,0.34459925]
[1739246174414,0.0001067,97664.0,97663.0,0.34659925]
[1739246175721,0.0001067,97664.0,97663.0,0.66819925]
[1739246196277,0.0001067,97664.0,97663.0,0.58579925]
[1739246207485,0.0001067,97664.0,97663.0,0.61692962]
[1739246207880,0.0001067,97664.0,97663.0,0.58579925]
[1739246208594,0.0001067,97664.0,97663.0,2.11693008]
[1739246209415,0.0001067,97664.0,97663.0,0.61693008]
[1739246209655,0.0001067,97664.0,97663.0,0.58579925]
[1739246210085,0.0001067,97664.0,97663.0,0.61693098]
[1739246210430,0.0001067,97664.0,97663.0,0.58579925]
[1739246210817,0.0001067,97664.0,97663.0,0.61692774]
[1739246213195,0.0001067,97664.0,97663.0,0.58579925]
[1739246213600,0.0001067,97664.0,97663.0,0.61692615]
[1739246214944,0.0001067,97664.0,97663.0,0.58579925]
[1739246215121,0.0001067,97664.0,97663.0,0.61692334]
[1739246215322,0.0001067,97664.0,97663.0,0.58579925]
[1739246215684,0.0001067,97664.0,97663.0,0.61692383]
[1739246215886,0.0001067,97664.0,97663.0,0.58579925]
[1739246216098,0.0001067,97664.0,97663.0,0.75879925]
[1739246216324,0.0001067,97664.0,97663.0,0.78992189]
[1739246216686,0.0001067,97664.0,97663.0,1.32402189]
[1739246217826,0.0001067,97664.0,97663.0,2.82402189]
[1739246218027,0.0001067,97664.0,97663.0,1.32402189]
[1739246220156,0.0001067,97664.0,97663.0,1.31802189]
[1739246220346,0.0001067,97664.0,97663.0,1.31602189]
[1739246220572,0.0001067,97664.0,97663.0,1.32702189]
[1739246220997,0.0001067,97664.0,97663.0,1.32102189]
[1739246221400,0.0001067,97664.0,97663.0,1.33302189]
[1739246221581,0.0001067,97664.0,97663.0,1.42482619]
[1739246224945,0.0001067,97669.0,97668.0,0.303581]
[1739246225127,0.0001067,97669.0,97668.0,0.40608465]
[1739246226406,0.0001067,97669.0,97668.0,0.72768465]
[1739246226820,0.0001067,97669.0,97668.0,0.75838844]
[1739246227411,0.0001067,97669.0,97668.0,0.76338844]
[1739246228271,0.0001067,97669.0,97668.0,0.77538844]
[1739246230818,0.0001067,97669.0,97668.0,0.79614156]
[1739246232424,0.0001067,97669.0,97668.0,0.93203549]
[1739246232988,7e-07,97669.0,97668.0,2.97613549]
[1739246233113,5.7e-07,97680.0,97679.0,0.408364]
[1739246233317,0.00022408,97694.0,97693.0,0.153542]
[1739246233579,0.00022408,97694.0,97693.0,0.25604565]
[1739246234568,0.00022408,97694.0,97693.0,0.26104565]
[1739246234774,0.00022408,97694.0,97693.0,0.25604565]
[1739246235164,0.00022408,97694.0,97693.0,0.26204565]
[1739246235570,0.00022408,97694.0,97693.0,0.29274944]
[1739246236000,0.00022408,97694.0,97693.0,0.30674944]
[1739246236979,0.00022408,97694.0,97693.0,0.32699224]
[1739246238158,0.00022408,97694.0,97693.0,0.64859224]
[1739246238622,0.00022408,97694.0,97693.0,0.65860545]
[1739246239191,0.00022408,97694.0,97693.0,0.62790166]
[1739246242153,0.00022408,97694.0,97693.0,0.65853745]
[1739246244300,0.00022408,97694.0,97693.0,0.62790166]
[1739246245888,0.00022408,97694.0,97693.0,0.80090166]
[1739246246102,0.00022408,97694.0,97693.0,0.88040166]
[1739246246307,8e-08,97694.0,97693.0,0.88040166]
[1739246247203,8e-08,97694.0,97693.0,0.90543843]
[1739246247351,8e-08,97694.0,97693.0,0.88140166]
[1739246247575,8e-08,97694.0,97693.0,0.87440166]
[1739246247771,8e-08,97694.0,97693.0,0.86040166]
[1739246248008,8e-08,97694.0,97693.0,0.86740166]
[1739246248163,8e-08,97694.0,97693.0,0.88240166]
[1739246248855,8e-08,97694.0,97693.0,0.86740166]
[1739246249608,8e-08,97694.0,97693.0,0.88240166]
[1739246250030,8e-08,97694.0,97693.0,1.41650166]
[1739246256337,8e-08,97694.0,97693.0,1.41672552]
[1739246259212,8e-08,97694.0,97693.0,1.33722552]
[1739246261466,8e-08,97694.0,97693.0,1.31422552]
[1739246265368,8e-08,97694.0,97693.0,1.34527256]
[1739246265765,8e-08,97694.0,97693.0,1.31422552]
[1739246266393,8e-08,97694.0,97693.0,1.34528211]
[1739246269809,8e-08,97694.0,97693.0,1.36828211]
[1739246270851,8e-08,97694.0,97693.0,1.36128211]
[1739246271248,8e-08,97694.0,97693.0,1.35328211]
[1739246272213,8e-08,97694.0,97693.0,1.36828211]
[1739246273414,8e-08,97694.0,97693.0,2.86828211]
[1739246275599,8e-08,97694.0,97693.0,2.87564211]
[1739246276435,8e-08,97694.0,97693.0,1.37564211]
[1739246277173,8e-08,97694.0,97693.0,2.87564211]
[1739246277605,8e-08,97694.0,97693.0,1.37564211]
[1739246277987,8e-08,97694.0,97693.0,2.87564211]
[1739246278543,8e-08,97694.0,97693.0,1.37564211]
[1739246280705,8e-08,97694.0,97693.0,1.35264211]
[1739246281522,8e-08,97694.0,97693.0,1.37564211]
[1739246282279,8e-08,97694.0,97693.0,1.38564211]
[1739246282423,0.0001066,97721.0,97713.0,0.30351]
[1739246282624,0.00022027,97721.0,97720.0,0.25600265]
[1739246283199,0.00022027,97721.0,97720.0,0.46011781]
[1739246283929,0.00022027,97721.0,97720.0,0.46411781]
[1739246284098,0.00022027,97721.0,97720.0,0.46011781]
[1739246284608,0.00022027,97721.0,97720.0,0.48500637]
[1739246284955,0.00022027,97721.0,97720.0,0.49200637]
[1739246285449,0.00022027,97721.0,97720.0,0.47719032]
[1739246285654,0.00022027,97721.0,97720.0,1.33289032]
[1739246286062,0.00022027,97721.0,97720.0,1.34789032]
[1739246286281,0.00022027,97721.0,97720.0,1.31677516]
[1739246286720,0.00022027,97721.0,97720.0,1.30977516]
[1739246287595,0.00022027,97721.0,97720.0,1.31677516]
[1739246287802,0.00022027,97721.0,97720.0,1.29477516]
[1739246288237,0.00022027,97721.0,97720.0,1.31677516]
[1739246291884,0.00022027,97721.0,97720.0,1.30113516]
[1739246293829,0.00022027,97721.0,97720.0,1.29377516]
[1739246296429,0.07622027,97721.0,97720.0,1.29377516]
[1739246296895,0.00022027,97721.0,97720.0,1.29377516]
[1739246308801,0.00022027,97721.0,97720.0,1.30177516]
[1739246309157,0.00022027,97721.0,97720.0,1.31677516]
[1739246309577,0.00022027,97721.0,97720.0,1.30977516]
[1739246310116,0.00022027,97721.0,97720.0,1.31677516]
[1739246316544,0.00022027,97721.0,97720.0,1.34785887]
[1739246333192,0.076,97734.0,97721.0,0.173]
[1739246333398,0.076,97734.0,97733.0,0.153479]
[1739246333600,0.076,97734.0,97733.0,0.57758265]
[1739246334949,0.076,97734.0,97733.0,0.58258265]
[1739246335690,0.076,97734.0,97733.0,0.59358265]
[1739246336515,0.076,97734.0,97733.0,0.58858265]
[1739246336939,0.076,97734.0,97733.0,0.58058265]
[1739246337293,0.076,97734.0,97733.0,0.58658265]
[1739246338304,0.076,97734.0,97733.0,0.59664549]
[1739246339259,0.0761066,97734.0,97733.0,0.59664549]
[1739246339782,0.0761066,97734.0,97733.0,0.61702106]
[1739246342589,0.0001066,97734.0,97733.0,0.61702106]
[1739246344175,0.0001066,97734.0,97733.0,0.79002106]
[1739246344381,0.0001066,97734.0,97733.0,0.82112471]
[1739246344999,0.0001066,97734.0,97733.0,0.81512471]
[1739246345200,0.0001066,97734.0,97733.0,0.82612471]
[1739246345901,0.0001066,97734.0,97733.0,0.82312471]
[1739246346051,0.0001066,97734.0,97733.0,0.82812471]
[1739246346501,0.0001066,97734.0,97733.0,0.82312471]
[1739246346683,0.0001066,97734.0,97733.0,0.82812471]
[1739246346886,0.0001066,97734.0,97733.0,0.82312471]
[1739246347085,0.0001066,97734.0,97733.0,0.81212471]
[1739246347305,0.0001066,97734.0,97733.0,0.81712471]
[1739246347509,0.0001066,97734.0,97733.0,0.82812471]
[1739246347886,0.0001066,97734.0,97733.0,0.81712471]
[1739246348086,0.0001066,97734.0,97733.0,1.35122471]
[1739246348287,0.0001066,97734.0,97733.0,1.36222471]
[1739246348484,0.0001066,97734.0,97733.0,1.33112106]
[1739246369922,0.0001066,97734.0,97733.0,1.36217603]
[1739246370066,0.0001066,97734.0,97733.0,1.33112106]
[1739246373457,0.0001066,97734.0,97733.0,1.33848106]
[1739246373751,0.0001066,97734.0,97733.0,1.3695535]
[1739246382752,0.0001066,97734.0,97733.0,1.3465535]
[1739246383590,0.0001066,97734.0,97733.0,1.3391935]
[1739246383796,0.0001066,97734.0,97733.0,0.8050935]
[1739246384010,0.0001066,97734.0,97733.0,0.8280935]
[1739246384378,0.0001066,97734.0,97733.0,0.8050935]
[1739246387958,0.0776,97735.0,97734.0,0.30853877]
[1739246388188,0.0776,97735.0,97734.0,0.44211486]
[1739246389182,0.0776,97735.0,97734.0,0.45311486]
[1739246389637,0.0776,97735.0,97734.0,0.77471486]
[1739246391094,0.0776,97735.0,97734.0,0.77971486]
[1739246392379,0.08540477,97735.0,97734.0,0.77971486]
[1739246392587,0.13350477,97735.0,97734.0,0.74864242]
[1739246393435,0.1257,97735.0,97734.0,0.74864242]
[1739246394576,0.1257,97735.0,97734.0,0.59864242]
[1739246395432,0.1257,97735.0,97734.0,0.61782335]
[1739246395695,0.1257,97735.0,97734.0,0.29622335]
[1739246397012,0.1258066,97735.0,97734.0,0.29622335]
[1739246397219,0.13843203,97735.0,97734.0,0.29622335]
[1739246397921,0.13843203,97735.0,97734.0,0.14274635]
[1739246398339,0.14548423,97735.0,97734.0,0.0402427]
[1739246399074,0.14548423,97735.0,97734.0,0.0292427]
[1739246399293,0.14548423,97735.0,97734.0,0.0362427]
[1739246399932,0.14548423,97735.0,97734.0,0.0312427]
[1739246400113,0.14548423,97735.0,97734.0,0.0242427]
[1739246400320,0.14548423,97735.0,97734.0,0.0272427]
[1739246400573,0.1328588,97735.0,97734.0,0.0252427]
[1739246401877,0.1328588,97735.0,97734.0,0.0242427]
[1739246402315,0.1338588,97735.0,97734.0,0.0242427]
[1739246403475,0.1338588,97735.0,97734.0,0.00506177]
[1739246405946,0.2873348,97735.0,97734.0,0.00506177]
[1739246406356,0.35807407,97735.0,97734.0,0.00506177]
[1739246407019,0.20459807,97735.0,97734.0,0.00506177]
[1739246407213,0.1338588,97735.0,97734.0,0.00506177]
[1739246407388,0.2873348,97735.0,97734.0,0.00506177]
[1739246408211,0.1338588,97735.0,97734.0,0.00506177]
[1739246408413,0.2873348,97735.0,97734.0,0.00506177]
[1739246408990,0.2873348,97735.0,97734.0,0.00528563]
[1739246409197,0.35807477,97735.0,97734.0,0.00528563]
[1739246411777,0.35707477,97735.0,97734.0,0.00528563]
[1739246412006,0.35796179,97735.0,97734.0,0.00528563]
[1739246412766,0.35767762,97735.0,97734.0,0.00528563]
[1739246413568,0.35710813,97735.0,97734.0,0.00528563]
[1739246415365,0.35690385,97735.0,97734.0,0.00528563]
[1739246417038,0.28616388,97735.0,97734.0,0.00528563]
[1739246418043,0.28570967,97735.0,97734.0,0.00528563]
[1739246418728,0.28553963,97735.0,97734.0,0.00528563]
[1739246419697,0.28548942,97735.0,97734.0,0.00528563]
[1739246421737,0.28448942,97735.0,97734.0,0.00528563]
[1739246422341,0.37740695,97735.0,97734.0,0.00628563]
[1739246422864,0.37640695,97735.0,97734.0,0.00528563]
[1739246423127,0.38040695,97735.0,97734.0,0.00728563]
[1739246423334,0.37740695,97735.0,97734.0,0.00628563]
[1739246423546,0.37986714,97735.0,97734.0,0.00728563]
[1739246424575,0.37981123,97735.0,97734.0,0.00728563]
[1739246427044,0.37955675,97735.0,97734.0,0.00728563]
[1739246429378,0.37960119,97735.0,97734.0,0.00728563]
[1739246432875,0.38960119,97735.0,97734.0,0.00728563]
[1739246433320,0.51510484,97735.0,97734.0,0.00728563]
[1739246433701,0.67510484,97735.0,97734.0,0.00728563]
[1739246439000,0.66510484,97735.0,97734.0,0.00728563]
[1739246439211,0.67510484,97735.0,97734.0,0.00728563]
[1739246440396,0.70702636,97735.0,97734.0,0.00728563]
[1739246441313,0.69702636,97735.0,97734.0,0.00728563]
[1739246441515,0.70702636,97735.0,97734.0,0.00728563]
[1739246443845,0.69702636,97735.0,97734.0,0.00728563]
[1739246443992,0.70702636,97735.0,97734.0,0.00728563]
[1739246446571,0.69702636,97735.0,97734.0,0.00728563]
[1739246446929,0.70702636,97735.0,97734.0,0.00728563]
[1739246449189,0.69702636,97735.0,97734.0,0.00728563]
[1739246449446,0.70702636,97735.0,97734.0,0.00728563]
[1739246451669,0.67510484,97735.0,97734.0,0.00728563]
[1739246454400,0.70705987,97735.0,97734.0,0.00728563]
[1739246455430,0.69705987,97735.0,97734.0,0.00728563]
[1739246455608,0.70705987,97735.0,97734.0,0.00728563]
[1739246456967,0.69705987,97735.0,97734.0,0.00728563]
[1739246457553,0.70705987,97735.0,97734.0,0.00728563]
[1739246457891,0.61215545,97735.0,97734.0,0.00728563]
[1739246458083,0.62215545,97735.0,97734.0,0.00728563]
[1739246458849,0.61215545,97735.0,97734.0,0.00728563]
[1739246459215,0.62215545,97735.0,97734.0,0.00728563]
[1739246460028,0.59020042,97735.0,97734.0,0.00728563]
[1739246460555,0.16467924,97735.0,97734.0,0.00728563]
[1739246461332,0.16467924,97735.0,97734.0,0.00628563]
[1739246461333,0.16367924,97735.0,97734.0,0.00628563]
[1739246461918,0.16067924,97735.0,97734.0,0.00528563]
[1739246462271,0.17267924,97735.0,97734.0,0.00728563]
[1739246462413,0.01920324,97735.0,97734.0,0.00628563]
[1739246462613,0.01020324,97735.0,97734.0,0.00528563]
[1739246462863,0.01320324,97735.0,97734.0,0.00528563]
[1739246463160,0.02220324,97735.0,97734.0,0.00628563]
[1739246465515,0.17567924,97735.0,97734.0,0.00628563]
[1739246465784,0.21375454,97735.0,97734.0,0.00628563]
[1739246465983,0.06027854,97735.0,97734.0,0.00628563]
[1739246466184,0.02220324,97735.0,97734.0,0.00628563]
[1739246477720,0.01515104,97735.0,97734.0,0.00628563]
[1739246478349,0.00615104,97735.0,97734.0,0.00528563]
[1739246478704,0.00815104,97735.0,97734.0,0.00628563]
[1739246478909,0.01115104,97735.0,97734.0,0.00628563]
[1739246479647,0.01415104,97735.0,97734.0,0.00628563]
[1739246479839,0.00815104,97735.0,97734.0,0.00628563]
[1739246479968,0.00315104,97735.0,97734.0,0.00528563]
[1739246480177,0.00915104,97735.0,97734.0,0.00528563]
[1739246480619,0.01215104,97735.0,97734.0,0.00528563]
[1739246480830,0.00615104,97735.0,97734.0,0.00528563]
[1739246481032,0.01215104,97735.0,97734.0,0.00528563]
[1739246481262,0.01916034,97735.0,97734.0,0.00528563]
[1739246481467,0.01215104,97735.0,97734.0,0.00528563]
[1739246481670,0.00615104,97735.0,97734.0,0.00528563]
[1739246482040,0.01215104,97735.0,97734.0,0.00528563]
[1739246482474,0.00615104,97735.0,97734.0,0.00528563]
[1739246482859,0.00915104,97735.0,97734.0,0.00528563]
[1739246483723,0.02545802,97735.0,97734.0,0.00528563]
[1739246483902,0.03246734,97735.0,97734.0,0.00528563]
[1739246485138,0.02646734,97735.0,97734.0,0.00528563]
[1739246485343,0.03246734,97735.0,97734.0,0.00528563]
[1739246485697,0.02946734,97735.0,97734.0,0.00528563]
[1739246485903,0.03246734,97735.0,97734.0,0.00528563]
[1739246500772,0.18594334,97735.0,97734.0,0.00528563]
[1739246500973,0.03246734,97735.0,97734.0,0.00528563]
[1739246501759,0.01616036,97735.0,97734.0,0.00528563]
[1739246503318,0.01616036,97735.0,97734.0,0.26126628]
[1739246503767,0.00915104,97735.0,97734.0,0.26126628]
[1739246504167,0.00315104,97735.0,97734.0,0.26126628]
[1739246504393,0.00615104,97735.0,97734.0,0.26126628]
[1739246504806,0.00015104,97735.0,97734.0,0.26126628]
[1739246505144,0.00115104,97735.0,97734.0,0.26126628]
[1739246505574,0.00215104,97735.0,97734.0,0.26126628]
[1739246505801,0.00115104,97735.0,97734.0,0.26126628]
[1739246506399,0.00015104,97735.0,97734.0,0.26126628]
[1739246510754,0.00015104,97735.0,97734.0,0.34056628]
[1739246512408,0.00015104,97735.0,97734.0,0.34256628]
[1739246512888,0.00015104,97735.0,97734.0,0.34856628]
[1739246515467,0.00015104,97735.0,97734.0,0.49856628]
[1739246517876,5.988e-05,97735.0,97734.0,0.49856628]
[1739246520597,5.988e-05,97735.0,97734.0,0.47189961]
[1739246524994,5.988e-05,97735.0,97734.0,1.00599961]
[1739246526261,0.00022408,97761.0,97735.0,0.2328]
[1739246526466,0.00022408,97761.0,97742.0,0.48876865]
[1739246528172,0.00022408,97761.0,97742.0,0.49376865]
[1739246528754,0.00022408,97761.0,97742.0,0.54136865]
[1739246528934,0.00022408,97761.0,97742.0,0.55362016]
[1739246529451,0.00022408,97761.0,97742.0,1.08772016]
[1739246529804,0.00022408,97761.0,97742.0,1.08072016]
[1739246529979,0.00022408,97761.0,97742.0,2.58672016]
[1739246530185,0.00022408,97761.0,97742.0,2.60072016]
[1739246530395,0.00022408,97761.0,97742.0,2.62372016]
[1739246531794,0.00022408,97761.0,97742.0,2.60372016]
[1739246532150,0.00022408,97761.0,97742.0,2.61072016]
[1739246532890,0.00022408,97761.0,97742.0,2.60372016]
[1739246533274,0.00022408,97761.0,97742.0,2.61072016]
[1739246533632,0.00022408,97761.0,97742.0,2.62372016]
[1739246534153,0.00022408,97761.0,97755.0,0.303444]
[1739246534358,0.00022408,97761.0,97755.0,0.94004765]
[1739246534555,0.00066837,97756.0,97755.0,0.94004765]
[1739246535330,0.00066837,97756.0,97755.0,0.94904765]
[1739246535577,0.00066837,97756.0,97755.0,0.95304765]
[1739246535774,0.00066837,97756.0,97755.0,0.94904765]
[1739246536017,0.00066837,97756.0,97755.0,0.95304765]
[1739246536253,0.00066837,97756.0,97755.0,0.97351538]
[1739246536941,0.00066837,97756.0,97755.0,0.98364704]
[1739246539940,0.00066837,97756.0,97755.0,0.97464704]
[1739246540161,0.00066837,97756.0,97755.0,0.98564704]
[1739246540665,0.00066837,97756.0,97755.0,0.97064704]
[1739246540927,0.00066837,97756.0,97755.0,0.98864704]
[1739246541188,0.00066837,97756.0,97755.0,0.98364704]
[1739246541678,0.00066837,97756.0,97755.0,0.98864704]
[1739246547338,0.00022408,97761.0,97760.0,0.303436]
[1739246547586,0.0002685,97761.0,97760.0,0.40593965]
[1739246548731,0.0002685,97761.0,97760.0,0.40993965]
[1739246549431,0.0002685,97761.0,97760.0,0.41893965]
[1739246558423,0.0002685,97761.0,97760.0,0.42852128]
[1739246560218,0.0002685,97761.0,97760.0,0.41952128]
[1739246560643,0.0002685,97761.0,97760.0,0.42452128]
[1739246560846,0.0002685,97761.0,97760.0,0.42852128]
[1739246562401,0.0002685,97761.0,97760.0,0.41952128]
[1739246562584,0.0002685,97761.0,97760.0,0.42952128]
[1739246563951,0.0002685,97761.0,97760.0,0.41993965]
[1739246566378,0.0821685,97761.0,97760.0,0.11650365]
[1739246566778,0.09522667,97761.0,97760.0,0.26993965]
[1739246567478,0.09522667,97761.0,97760.0,0.11650365]
[1739246567648,0.09522667,97761.0,97760.0,0.26993965]
[1739246568207,0.08956182,97761.0,97760.0,0.26993965]
[1739246568938,0.08956182,97761.0,97760.0,0.11650365]
[1739246569758,0.13776182,97761.0,97760.0,0.11650365]
[1739246570166,0.13776182,97761.0,97760.0,0.014]
[1739246570592,0.13776182,97761.0,97760.0,0.01]
[1739246570794,0.16690212,97761.0,97760.0,0.01]
[1739246570993,0.13776182,97761.0,97760.0,0.01]
[1739246571199,0.13776182,97761.0,97760.0,0.012]
[1739246571957,0.13776182,97761.0,97760.0,0.002]
[1739246572362,0.13776182,97761.0,97760.0,0.008]
[1739246572787,0.18735932,97761.0,97760.0,0.008]
[1739246573353,0.13776182,97761.0,97760.0,0.008]
[1739246574352,0.13776182,97761.0,97760.0,0.00799945]
[1739246574719,0.13776182,97761.0,97760.0,0.1105031]